lending/lending_fUSD_20241229
["ID","MTS","AMOUNT","RATE_DAILY","PERIOD"]
[347110292,1735501869941,-500.0,0.0001773,2]
[347110293,1735501869951,-500.0,0.0001773,2]
[347110294,1735501869961,-567.22,0.0001773,2]
[347110295,1735501869970,-500.0,0.0001773,2]
[347110296,1735501869980,-500.0,0.0001773,2]
[347110297,1735501869990,-634.86,0.0001773,2]
[347110298,1735501869999,-796.83,0.0001773,2]
[347110299,1735501870009,-360.45,0.00017741,2]
[347110300,1735501870019,-500.0,0.00017781,7]
[347110301,1735501870028,-600.0,0.00017808,2]
[347110302,1735501870037,-300.0,0.00017813,2]
[347110303,1735501870046,-1870.0,0.0001786,2]
[347110304,1735501870055,-152.82240631,0.00017863,2]
[347110305,1735501870063,-163.01741477,0.00017863,2]
[347110306,1735501870073,-251.25859415,0.00017863,2]
[347110307,1735501870082,-632.11620423,0.00017863,2]
[347110308,1735501870091,-168.02931859,0.00017863,2]
[347110309,1735501870101,-154.49161424,0.00017863,2]
[347110310,1735501870110,-221.87625451,0.00017863,2]
[347110311,1735501870119,-500.0,0.00017924,2]
[347110312,1735501870129,-500.0,0.00017924,2]
[347110313,1735501870138,-341.85,0.00017925,2]
[347110314,1735501870147,-520.88,0.00017925,2]
[347110315,1735501870157,-591.49,0.00017925,2]
[347110316,1735501870167,-500.0,0.00017925,2]
[347110317,1735501870176,-522.5,0.00017925,2]
[347110318,1735501870186,-500.0,0.00017925,2]
[347110319,1735501870195,-307.92,0.00017925,2]
[347110320,1735501870205,-2108.31,0.00017925,2]
[347110321,1735501870214,-500.0,0.00017925,2]
[347110322,1735501870223,-500.0,0.00017925,2]
[347110323,1735501870233,-500.0,0.00017925,2]
[347110324,1735501870243,-500.0,0.00017925,2]
[347110325,1735501870252,-841.79,0.00017925,2]
[347110326,1735501870261,-648.91747587,0.00017925,2]
[347110327,1735501870270,-500.0,0.00017925,2]
[347110328,1735501870279,-500.0,0.00017925,2]
[347110329,1735501870288,-500.0,0.00017925,2]
[347110330,1735501870298,-500.0,0.00017925,2]
[347110331,1735501870307,-500.0,0.00017925,2]
[347110332,1735501870317,-500.0,0.00017925,2]
[347110333,1735501870326,-500.0,0.00017925,2]
[347110334,1735501870453,-500.0,0.00017925,2]
[347110335,1735501870463,-1480.24,0.00017925,2]
[347110336,1735501870473,-500.0,0.00017925,2]
[347110337,1735501870483,-500.0,0.00017925,2]
[347110338,1735501870492,-500.0,0.00017925,2]
[347110339,1735501870502,-500.0,0.00017925,2]
[347110340,1735501870511,-500.0,0.00017925,2]
[347110341,1735501870520,-500.0,0.00017925,2]
[347110342,1735501870530,-500.0,0.00017925,2]
[347110343,1735501870540,-500.0,0.00017925,2]
[347110344,1735501870549,-651.63,0.00017925,2]
[347110345,1735501870559,-500.0,0.00017925,2]
[347110346,1735501870568,-500.0,0.00017925,2]
[347110347,1735501870578,-500.0,0.00017925,2]
[347110348,1735501870588,-500.0,0.00017925,2]
[347110349,1735501870598,-500.0,0.00017925,2]
[347110350,1735501870608,-500.0,0.00017925,2]
[347110351,1735501870622,-500.0,0.00017925,2]
[347110352,1735501870631,-2369.92,0.00017925,2]
[347110353,1735501870641,-635.05,0.00017925,2]
[347110354,1735501870650,-500.0,0.00017925,2]
[347110355,1735501870659,-583.56,0.00017925,2]
[347110356,1735501870669,-500.0,0.00017925,2]
[347110357,1735501870679,-500.0,0.00017925,2]
[347110358,1735501870689,-501.86,0.00017925,2]
[347110359,1735501870698,-705.51,0.00017925,2]
[347110360,1735501870709,-3016.44,0.00017925,2]
[347110361,1735501870718,-500.0,0.00017925,2]
[347110362,1735501870728,-965.04,0.00017925,2]
[347110363,1735501870738,-500.0,0.00017925,2]
[347110364,1735501870747,-687.22,0.00017925,2]
[347110365,1735501870757,-500.0,0.00017925,2]
[347110366,1735501870766,-500.0,0.00017925,2]
[347110367,1735501870775,-2182.7,0.00017925,2]
[347110368,1735501870785,-500.0,0.00017925,2]
[347110369,1735501870795,-1103.62,0.00017925,2]
[347110370,1735501870804,-886.22,0.00017925,2]
[347110371,1735501870813,-500.0,0.00017925,2]
[347110372,1735501870823,-193.1,0.00017925,2]
[347110373,1735501870832,-500.0,0.00017925,2]
[347110374,1735501870842,-1816.86,0.00017925,2]
[347110375,1735501870852,-500.0,0.00017925,2]
[347110376,1735501870861,-500.0,0.00017926,2]
[347110377,1735501870871,-500.0,0.00017926,2]
[347110378,1735501870881,-500.0,0.00017926,2]
[347110379,1735501870890,-500.0,0.00017926,2]
[347110380,1735501870900,-467.46,0.00017926,2]
[347110381,1735501870909,-500.0,0.00017926,2]
[347110382,1735501870919,-163.01741477,0.00017945,2]
[347110383,1735501870928,-251.25859415,0.00017945,2]
[347110384,1735501870938,-632.11620423,0.00017945,2]
[347110385,1735501870948,-168.02931859,0.00017945,2]
[347110386,1735501870958,-221.87625451,0.00017945,2]
[347110387,1735501870968,-5088.81,0.00017947,2]
[347110388,1735501870977,-400.0,0.0001797,2]
[347110389,1735501870987,-400.0,0.0001797,2]
[347110390,1735501870997,-401.78358906,0.0001797,2]
[347110391,1735501871007,-152.82240631,0.00017973,2]
[347110392,1735501871016,-154.49161424,0.00017973,2]
[347110393,1735501871026,-600.0,0.00018,2]
[347110394,1735501871035,-500.0,0.00018,2]
[347110395,1735501871045,-236.21,0.00018,2]
[347110396,1735501871054,-500.0,0.00018,2]
[347110397,1735501871064,-500.0,0.00018,2]
[347110398,1735501871073,-387.2,0.00018,2]
[347110399,1735501871083,-500.0,0.00018,2]
[347110400,1735501871092,-500.0,0.00018,2]
[347110401,1735501871101,-500.0,0.00018,2]
[347110402,1735501871111,-500.0,0.00018,2]
[347110403,1735501871121,-500.0,0.00018,2]
[347110404,1735501871131,-500.0,0.00018,2]
[347110405,1735501871141,-500.0,0.00018,2]
[347110406,1735501871150,-500.0,0.00018,2]
[347110407,1735501871160,-500.0,0.00018,2]
[347110408,1735501871170,-500.0,0.00018,2]
[347110409,1735501871180,-500.0,0.00018,2]
[347110410,1735501871189,-500.0,0.00018,2]
[347110411,1735501871198,-500.0,0.00018,2]
[347110412,1735501871209,-500.0,0.00018,2]
[347110413,1735501871220,-500.0,0.00018,2]
[347110414,1735501871230,-500.0,0.00018,2]
[347110415,1735501871239,-500.0,0.00018,2]
[347110416,1735501871249,-754.31,0.00018,2]
[347110417,1735501871259,-464.01,0.00018,2]
[347110418,1735501871268,-500.0,0.00018,2]
[347110419,1735501871278,-606.97,0.00018,2]
[347110420,1735501871288,-603.41,0.00018,2]
[347110421,1735501871297,-500.0,0.00018,2]
[347110422,1735501871307,-189.32,0.00018,2]
[347110423,1735501871317,-500.0,0.00018,2]
[347110424,1735501871326,-500.0,0.00018,2]
[347110425,1735501871336,-614.76650191,0.00018,2]
[347110426,1735501871345,-500.0,0.00018,2]
[347110427,1735501871355,-1000.0,0.00018,2]
[347110428,1735501871365,-500.0,0.00018,2]
[347110429,1735501871374,-500.0,0.00018,2]
[347110430,1735501871384,-295.84,0.00018,2]
[347110431,1735501871393,-500.0,0.00018,2]
[347110432,1735501871402,-500.0,0.00018,2]
[347110433,1735501871412,-500.0,0.00018,2]
[347110434,1735501871422,-500.0,0.00018,2]
[347110435,1735501871434,-529.66,0.00018,2]
[347110436,1735501871444,-500.0,0.00018,2]
[347110437,1735501871454,-500.0,0.00018,2]
[347110438,1735501871464,-500.0,0.00018,2]
[347110439,1735501871475,-500.0,0.00018,2]
[347110440,1735501871484,-500.0,0.00018,2]
[347110441,1735501871494,-500.0,0.00018,2]
[347110442,1735501871504,-500.0,0.00018,2]
[347110443,1735501871514,-500.0,0.00018,2]
[347110444,1735501871523,-500.0,0.00018,2]
[347110445,1735501871533,-1814.14,0.00018001,2]
[347110446,1735501871543,-256.376846,0.00018001,2]
[347110447,1735501871553,-500.0,0.00018001,2]
[347110448,1735501871562,-223.804878,0.00018001,2]
[347110449,1735501871572,-500.0,0.00018001,2]
[347110450,1735501871582,-2173.53,0.00018001,2]
[347110451,1735501871592,-500.0,0.00018001,2]
[347110452,1735501871601,-172.842739,0.00018001,2]
[347110453,1735501871612,-151.764506,0.00018001,2]
[347110454,1735501871622,-516.95,0.00018001,2]
[347110455,1735501871632,-500.0,0.00018001,2]
[347110456,1735501871641,-538.76,0.00018001,2]
[347110457,1735501871651,-500.0,0.00018001,2]
[347110458,1735501871661,-172.842739,0.00018001,2]
[347110459,1735501871671,-151.764505,0.00018001,2]
[347110460,1735501871681,-500.0,0.00018001,2]
[347110461,1735501871692,-1499.28,0.00018001,2]
[347110462,1735501871702,-500.0,0.00018001,2]
[347110463,1735501871712,-500.0,0.00018002,2]
[347110464,1735501871721,-500.0,0.00018002,2]
[347110465,1735501871732,-500.0,0.00018002,2]
[347110466,1735501871741,-189.6,0.00018002,2]
[347110467,1735501871751,-643.22,0.00018002,2]
[347110468,1735501871760,-500.0,0.00018002,2]
[347110469,1735501871770,-154.92,0.00018002,2]
[347110470,1735501871780,-500.0,0.00018002,2]
[347110471,1735501871790,-500.0,0.00018002,2]
[347110472,1735501871800,-500.0,0.00018002,2]
[347110473,1735501871809,-300.26,0.00018002,2]
[347110474,1735501871819,-500.0,0.00018002,2]
[347110475,1735501871829,-500.0,0.00018002,2]
[347110476,1735501871839,-388.1,0.00018002,2]
[347110477,1735501871851,-323.46,0.00018002,2]
[347110478,1735501871860,-1311.98,0.00018002,2]
[347110479,1735501871871,-485.36,0.00018002,2]
[347110480,1735501871881,-500.0,0.00018002,2]
[347110481,1735501871891,-500.0,0.00018002,2]
[347110482,1735501871901,-500.0,0.00018002,2]
[347110483,1735501871910,-1093.12,0.00018002,2]
[347110484,1735501871920,-500.0,0.00018002,2]
[347110485,1735501871930,-500.0,0.00018002,2]
[347110486,1735501871940,-500.0,0.00018004,2]
[347110487,1735501871950,-500.0,0.00018004,2]
[347110488,1735501871960,-500.0,0.00018004,2]
[347110489,1735501871970,-609.96,0.00018004,2]
[347110490,1735501871980,-1966.04,0.00018004,2]
[347110491,1735501871989,-500.0,0.00018004,2]
[347110492,1735501871998,-500.0,0.00018004,2]
[347110493,1735501872007,-2075.34,0.00018004,2]
[347110494,1735501872017,-500.0,0.00018004,2]
[347110495,1735501872026,-500.0,0.00018004,2]
[347110496,1735501872036,-343.44,0.00018004,2]
[347110497,1735501872045,-567.22,0.00018004,2]
[347110498,1735501872055,-500.0,0.00018004,2]
[347110499,1735501872065,-328.9,0.00018004,2]
[347110500,1735501872074,-634.86,0.00018004,2]
[347110501,1735501872084,-796.83,0.00018004,2]
[347110502,1735501872094,-163.01741477,0.00018027,2]
[347110503,1735501872104,-251.25859415,0.00018027,2]
[347110504,1735501872114,-632.11620423,0.00018027,2]
[347110505,1735501872123,-168.02931859,0.00018027,2]
[347110506,1735501872133,-221.87625451,0.00018027,2]
[347110507,1735501872142,-1870.0,0.0001804,2]
[347110508,1735501872151,-677.59242087,0.0001804,2]
[347110509,1735501872161,-500.0,0.00018055,7]
[347110510,1735501872170,-152.82240631,0.00018055,2]
[347110511,1735501872179,-154.49161424,0.00018082,2]
[347110512,1735501872188,-163.01741477,0.0001811,2]
[347110513,1735501872198,-251.25859415,0.0001811,2]
[347110514,1735501872208,-632.11620423,0.0001811,2]
[347110515,1735501872217,-168.02931859,0.0001811,2]
[347110516,1735501872227,-221.87625451,0.0001811,2]
[347110517,1735501872236,-152.82240631,0.00018164,2]
[347110518,1735501872246,-163.01741477,0.00018192,2]
[347110519,1735501872255,-251.25859415,0.00018192,2]
[347110520,1735501872265,-632.11620423,0.00018192,2]
[347110521,1735501872274,-168.02931859,0.00018192,2]
[347110522,1735501872283,-221.87625451,0.00018192,2]
[347110523,1735501872294,-500.0,0.00018198,2]
[347110524,1735501872304,-500.0,0.00018198,2]
[347110525,1735501872313,-520.88,0.00018199,2]
[347110526,1735501872322,-500.0,0.00018199,2]
[347110527,1735501872331,-500.0,0.00018199,2]
[347110528,1735501872340,-2108.31,0.00018199,2]
[347110529,1735501872349,-500.0,0.00018199,2]
[347110530,1735501872358,-500.0,0.00018199,2]
[347110531,1735501872367,-500.0,0.00018199,2]
[347110532,1735501872376,-500.0,0.00018199,2]
[347110533,1735501872385,-841.79,0.00018199,2]
[347110534,1735501872501,-500.0,0.00018199,2]
[347110535,1735501872511,-500.0,0.00018199,2]
[347110536,1735501872520,-500.0,0.00018199,2]
[347110537,1735501872529,-500.0,0.00018199,2]
[347110538,1735501872539,-275.81,0.00018199,2]
[347110539,1735501872548,-500.0,0.00018199,2]
[347110540,1735501872557,-500.0,0.00018199,2]
[347110541,1735501872567,-500.0,0.00018199,2]
[347110542,1735501872576,-1480.24,0.00018199,2]
[347110543,1735501872586,-626.74057386,0.00018199,2]
[347110544,1735501872595,-156.15053229,0.00018199,2]
[347110545,1735501872604,-302.63,0.00018199,2]
[347110546,1735501872616,-500.0,0.00018199,2]
[347110547,1735501872626,-500.0,0.00018199,2]
[347110548,1735501872635,-500.0,0.00018199,2]
[347110549,1735501872646,-500.0,0.00018199,2]
[347110550,1735501872656,-256.88,0.00018199,2]
[347110551,1735501872666,-651.63,0.00018199,2]
[347110552,1735501872675,-500.0,0.00018199,2]
[347110553,1735501872685,-500.0,0.00018199,2]
[347110554,1735501872695,-500.0,0.00018199,2]
[347110555,1735501872705,-500.0,0.00018199,2]
[347110556,1735501872715,-500.0,0.00018199,2]
[347110557,1735501872724,-191.64,0.00018199,2]
[347110558,1735501872734,-2369.92,0.00018199,2]
[347110559,1735501872743,-635.05,0.00018199,2]
[347110560,1735501872753,-583.56,0.00018199,2]
[347110561,1735501872762,-500.0,0.00018199,2]
[347110562,1735501872772,-500.0,0.00018199,2]
[347110563,1735501872781,-500.0,0.00018199,2]
[347110564,1735501872791,-501.86,0.00018199,2]
[347110565,1735501872800,-705.51,0.00018199,2]
[347110566,1735501872810,-3016.44,0.00018199,2]
[347110567,1735501872820,-965.04,0.00018199,2]
[347110568,1735501872830,-500.0,0.00018199,2]
[347110569,1735501872841,-687.22,0.00018199,2]
[347110570,1735501872850,-500.0,0.00018199,2]
[347110571,1735501872860,-500.0,0.00018199,2]
[347110572,1735501872869,-2182.7,0.00018199,2]
[347110573,1735501872880,-500.0,0.00018199,2]
[347110574,1735501872889,-1103.62,0.00018199,2]
[347110575,1735501872899,-219.12,0.00018199,2]
[347110576,1735501872909,-886.22,0.00018199,2]
[347110577,1735501872919,-217.64,0.00018199,2]
[347110578,1735501872929,-1816.86,0.00018199,2]
[347110579,1735501872938,-500.0,0.00018199,2]
[347110580,1735501872948,-11451.17209736,0.000182,2]
[347110581,1735501872959,-500.0,0.000182,2]
[347110582,1735501872969,-316.85,0.000182,2]
[347110583,1735501872979,-500.0,0.000182,2]
[347110584,1735501872989,-619.57,0.000182,2]
[347110585,1735501872999,-500.0,0.000182,2]
[347110586,1735501873008,-1967.56153244,0.00018216,10]
[347110587,1735501873018,-154.49161424,0.00018219,2]
[347110588,1735501873028,-1870.0,0.0001822,2]
[347110589,1735501873038,-5088.81,0.00018221,2]
[347110590,1735501873048,-1000.0,0.00018257,2]
[347110591,1735501873057,-1000.0,0.00018257,2]
[347110592,1735501873067,-1000.0,0.00018257,2]
[347110593,1735501873076,-1000.0,0.00018257,2]
[347110594,1735501873085,-1000.0,0.00018257,2]
[347110595,1735501873094,-1000.0,0.00018257,2]
[347110596,1735501873104,-1000.0,0.00018257,2]
[347110597,1735501873113,-1000.0,0.00018257,2]
[347110598,1735501873122,-1000.0,0.00018257,2]
[347110599,1735501873132,-1000.0,0.00018257,2]
[347110600,1735501873141,-152.82240631,0.00018274,2]
[347110601,1735501873150,-163.01741477,0.00018274,2]
[347110602,1735501873160,-251.25859415,0.00018274,2]
[347110603,1735501873169,-632.11620423,0.00018274,2]
[347110604,1735501873179,-168.02931859,0.00018274,2]
[347110605,1735501873189,-221.87625451,0.00018274,2]
[347110606,1735501873198,-500.0,0.00018274,2]
[347110607,1735501873207,-500.0,0.00018274,2]
[347110608,1735501873216,-500.0,0.00018274,2]
[347110609,1735501873226,-500.0,0.00018274,2]
[347110610,1735501873235,-500.0,0.00018274,2]
[347110611,1735501873244,-500.0,0.00018274,2]
[347110612,1735501873255,-500.0,0.00018274,2]
[347110613,1735501873264,-500.0,0.00018274,2]
[347110614,1735501873274,-500.0,0.00018274,2]
[347110615,1735501873283,-500.0,0.00018274,2]
[347110616,1735501873292,-500.0,0.00018274,2]
[347110617,1735501873301,-500.0,0.00018274,2]
[347110618,1735501873310,-485.4,0.00018274,2]
[347110619,1735501873320,-500.0,0.00018274,2]
[347110620,1735501873329,-500.0,0.00018274,2]
[347110621,1735501873339,-500.0,0.00018274,2]
[347110622,1735501873348,-500.0,0.00018274,2]
[347110623,1735501873359,-649.1,0.00018274,2]
[347110624,1735501873369,-500.0,0.00018274,2]
[347110625,1735501873381,-500.0,0.00018274,2]
[347110626,1735501873391,-754.31,0.00018274,2]
[347110627,1735501873401,-500.0,0.00018274,2]
[347110628,1735501873410,-606.97,0.00018274,2]
[347110629,1735501873420,-500.0,0.00018274,2]
[347110630,1735501873430,-500.0,0.00018274,2]
[347110631,1735501873439,-500.0,0.00018274,2]
[347110632,1735501873449,-500.0,0.00018274,2]
[347110633,1735501873459,-500.0,0.00018274,2]
[347110634,1735501873469,-500.0,0.00018274,2]
[347110635,1735501873486,-500.0,0.00018274,2]
[347110636,1735501873499,-500.0,0.00018274,2]
[347110637,1735501873509,-500.0,0.00018274,2]
[347110638,1735501873519,-500.0,0.00018274,2]
[347110639,1735501873529,-500.0,0.00018274,2]
[347110640,1735501873539,-500.0,0.00018274,2]
[347110641,1735501873549,-447.6,0.00018274,2]
[347110642,1735501873559,-500.0,0.00018274,2]
[347110643,1735501873569,-500.0,0.00018274,2]
[347110644,1735501873579,-275.36,0.00018274,2]
[347110645,1735501873589,-500.0,0.00018274,2]
[347110646,1735501873599,-500.0,0.00018274,2]
[347110647,1735501873612,-500.0,0.00018274,2]
[347110648,1735501873622,-1814.14,0.00018275,2]
[347110649,1735501873632,-256.376846,0.00018275,2]
[347110650,1735501873642,-500.0,0.00018275,2]
[347110651,1735501873652,-223.804878,0.00018275,2]
[347110652,1735501873663,-500.0,0.00018275,2]
[347110653,1735501873672,-2173.53,0.00018275,2]
[347110654,1735501873684,-500.0,0.00018275,2]
[347110655,1735501873694,-516.95,0.00018275,2]
[347110656,1735501873704,-500.0,0.00018275,2]
[347110657,1735501873715,-538.76,0.00018275,2]
[347110658,1735501873725,-500.0,0.00018275,2]
[347110659,1735501873735,-500.0,0.00018275,2]
[347110660,1735501873745,-1499.28,0.00018275,2]
[347110661,1735501873755,-500.0,0.00018275,2]
[347110662,1735501873764,-151.58,0.00018276,2]
[347110663,1735501873774,-500.0,0.00018276,2]
[347110664,1735501873783,-500.0,0.00018276,2]
[347110665,1735501873793,-500.0,0.00018276,2]
[347110666,1735501873803,-500.0,0.00018276,2]
[347110667,1735501873813,-500.0,0.00018276,2]
[347110668,1735501873823,-500.0,0.00018276,2]
[347110669,1735501873832,-298.19,0.00018276,2]
[347110670,1735501873843,-500.0,0.00018276,2]
[347110671,1735501873853,-1311.98,0.00018276,2]
[347110672,1735501873863,-288.28,0.00018276,2]
[347110673,1735501873873,-500.0,0.00018276,2]
[347110674,1735501873883,-500.0,0.00018276,2]
[347110675,1735501873892,-1093.12,0.00018276,2]
[347110676,1735501873902,-500.0,0.00018276,2]
[347110677,1735501873911,-500.0,0.00018276,2]
[347110678,1735501873921,-363.83,0.00018278,2]
[347110679,1735501873931,-500.0,0.00018278,2]
[347110680,1735501873940,-500.0,0.00018278,2]
[347110681,1735501873950,-609.96,0.00018278,2]
[347110682,1735501873960,-1966.04,0.00018278,2]
[347110683,1735501873969,-500.0,0.00018278,2]
[347110684,1735501873979,-640.36,0.00018278,2]
[347110685,1735501873989,-2075.34,0.00018278,2]
[347110686,1735501873998,-500.0,0.00018278,2]
[347110687,1735501874008,-500.0,0.00018278,2]
[347110688,1735501874017,-567.22,0.00018278,2]
[347110689,1735501874027,-500.0,0.00018278,2]
[347110690,1735501874037,-634.86,0.00018278,2]
[347110691,1735501874046,-796.83,0.00018278,2]
[347110692,1735501874056,-1500.0,0.00018293,2]
[347110693,1735501874065,-16143.76183342,0.00018318,2]
[347110694,1735501874075,-500.0,0.00018328,7]
[347110695,1735501874084,-154.49161424,0.00018329,2]
[347110696,1735501874093,-152.82240631,0.00018384,2]
[347110697,1735501874103,-163.01741477,0.00018384,2]
[347110698,1735501874112,-251.25859415,0.00018384,2]
[347110699,1735501874123,-632.11620423,0.00018384,2]
[347110700,1735501874132,-168.02931859,0.00018384,2]
[347110701,1735501874142,-221.87625451,0.00018384,2]
[347110702,1735501874151,-1000.0,0.000184,2]
[347110703,1735501874161,-1870.0,0.00018401,2]
[347110704,1735501874170,-154.49161424,0.00018438,2]
[347110705,1735501874179,-163.01741477,0.00018466,2]
[347110706,1735501874189,-251.25859415,0.00018466,2]
[347110707,1735501874198,-632.11620423,0.00018466,2]
[347110708,1735501874208,-168.02931859,0.00018466,2]
[347110709,1735501874217,-221.87625451,0.00018466,2]
[347110710,1735501874228,-500.0,0.00018472,2]
[347110711,1735501874237,-500.0,0.00018472,2]
[347110712,1735501874247,-520.88,0.00018473,2]
[347110713,1735501874256,-482.27,0.00018473,2]
[347110714,1735501874266,-500.0,0.00018473,2]
[347110715,1735501874275,-2108.31,0.00018473,2]
[347110716,1735501874285,-500.0,0.00018473,2]
[347110717,1735501874295,-500.0,0.00018473,2]
[347110718,1735501874436,-500.0,0.00018473,2]
[347110719,1735501874446,-500.0,0.00018473,2]
[347110720,1735501874455,-841.79,0.00018473,2]
[347110721,1735501874466,-459.37490482,0.00018473,2]
[347110722,1735501874477,-336.07,0.00018473,2]
[347110723,1735501874486,-500.0,0.00018473,2]
[347110724,1735501874496,-500.0,0.00018473,2]
[347110725,1735501874506,-334.26,0.00018473,2]
[347110726,1735501874516,-1480.24,0.00018473,2]
[347110727,1735501874525,-500.0,0.00018473,2]
[347110728,1735501874535,-500.0,0.00018473,2]
[347110729,1735501874544,-500.0,0.00018473,2]
[347110730,1735501874554,-500.0,0.00018473,2]
[347110731,1735501874564,-500.0,0.00018473,2]
[347110732,1735501874573,-651.63,0.00018473,2]
[347110733,1735501874583,-500.0,0.00018473,2]
[347110734,1735501874593,-325.36,0.00018473,2]
[347110735,1735501874602,-500.0,0.00018473,2]
[347110736,1735501874615,-500.0,0.00018473,2]
[347110737,1735501874624,-500.0,0.00018473,2]
[347110738,1735501874634,-2369.92,0.00018473,2]
[347110739,1735501874644,-635.05,0.00018473,2]
[347110740,1735501874653,-583.56,0.00018473,2]
[347110741,1735501874662,-500.0,0.00018473,2]
[347110742,1735501874672,-500.0,0.00018473,2]
[347110743,1735501874682,-500.0,0.00018473,2]
[347110744,1735501874691,-501.86,0.00018473,2]
[347110745,1735501874701,-705.51,0.00018473,2]
[347110746,1735501874711,-3016.44,0.00018473,2]
[347110747,1735501874722,-965.04,0.00018473,2]
[347110748,1735501874732,-529.62,0.00018473,2]
[347110749,1735501874742,-687.22,0.00018473,2]
[347110750,1735501874752,-500.0,0.00018473,2]
[347110751,1735501874761,-500.0,0.00018473,2]
[347110752,1735501874771,-2182.7,0.00018473,2]
[347110753,1735501874781,-500.0,0.00018473,2]
[347110754,1735501874791,-1103.62,0.00018473,2]
[347110755,1735501874800,-886.22,0.00018473,2]
[347110756,1735501874810,-1816.86,0.00018473,2]
[347110757,1735501874820,-257.74,0.00018473,2]
[347110758,1735501874829,-374.1,0.00018474,2]
[347110759,1735501874840,-500.0,0.00018474,2]
[347110760,1735501874850,-500.0,0.00018474,2]
[347110761,1735501874859,-152.82240631,0.00018493,2]
[347110762,1735501874869,-5088.81,0.00018495,2]
[347110763,1735501874879,-1002.1948,0.00018499,2]
[347110764,1735501874889,-230.0,0.000185,2]
[347110765,1735501874899,-1185.67,0.00018533,2]
[347110766,1735501874909,-163.01741477,0.00018548,2]
[347110767,1735501874918,-251.25859415,0.00018548,2]
[347110768,1735501874928,-632.11620423,0.00018548,2]
[347110769,1735501874938,-168.02931859,0.00018548,2]
[347110770,1735501874948,-221.87625451,0.00018548,2]
[347110771,1735501874960,-428.44,0.00018548,2]
[347110772,1735501874969,-475.35,0.00018548,2]
[347110773,1735501874979,-265.62,0.00018548,2]
[347110774,1735501874988,-500.0,0.00018548,2]
[347110775,1735501874997,-500.0,0.00018548,2]
[347110776,1735501875007,-500.0,0.00018548,2]
[347110777,1735501875016,-560.92,0.00018548,2]
[347110778,1735501875026,-500.0,0.00018548,2]
[347110779,1735501875035,-500.0,0.00018548,2]
[347110780,1735501875044,-500.0,0.00018548,2]
[347110781,1735501875053,-500.0,0.00018548,2]
[347110782,1735501875063,-500.0,0.00018548,2]
[347110783,1735501875072,-500.0,0.00018548,2]
[347110784,1735501875081,-500.0,0.00018548,2]
[347110785,1735501875090,-500.0,0.00018548,2]
[347110786,1735501875099,-500.0,0.00018548,2]
[347110787,1735501875109,-500.0,0.00018548,2]
[347110788,1735501875118,-500.0,0.00018548,2]
[347110789,1735501875128,-754.31,0.00018548,2]
[347110790,1735501875137,-206.15,0.00018548,2]
[347110791,1735501875147,-606.97,0.00018548,2]